[Event "Titled Tuesday Blitz September 13 Early 2022"]
[White "Winterberg, Lukas"]
[Black "Svane, Rasmus"]
[WhiteFideId "24622702"]
[BlackFideId "4657101"]
[WhiteElo "2516"]
[BlackElo "2916"]
[Result "0-1"]
[Round "01"]
[TimeControl "180+1"]
[Date "2022.09.13"]
[WhiteClock "0:00:04"]
[BlackClock "0:00:05"]

1. d4 {[%clk 0:03:00]}  d5 {[%clk 0:02:58]} 2. Nf3 {[%clk 0:03:01]}  e6 {[%clk 0:02:57]} 3. c4 {[%clk 0:03:01]}  a6 {[%clk 0:02:57]} 4. cxd5 {[%clk 0:03:01]}  exd5 {[%clk 0:02:58]} 5. Nc3 {[%clk 0:03:01]}  Nf6 {[%clk 0:02:58]} 6. Bg5 {[%clk 0:03:01]}  Be6 {[%clk 0:02:58]} 7. Bxf6 {[%clk 0:03:01]}  Qxf6 {[%clk 0:02:58]} 8. Qb3 {[%clk 0:03:02]}  Ra7 {[%clk 0:02:56]} 9. h4 {[%clk 0:03:01]}  Bd6 {[%clk 0:02:52]} 10. e4 {[%clk 0:02:55]}  dxe4 {[%clk 0:02:37]} 11. Nxe4 {[%clk 0:02:56]}  Qe7 {[%clk 0:02:25]} 12. Nxd6+ {[%clk 0:02:50]}  Qxd6 {[%clk 0:02:25]} 13. Bc4 {[%clk 0:02:46]}  Bxc4 {[%clk 0:02:12]} 14. Qxc4 {[%clk 0:02:47]}  O-O {[%clk 0:02:12]} 15. O-O {[%clk 0:02:45]}  Nd7 {[%clk 0:02:09]} 16. Rac1 {[%clk 0:02:34]}  c6 {[%clk 0:02:02]} 17. Qb3 {[%clk 0:02:33]}  a5 {[%clk 0:01:49]} 18. Rfd1 {[%clk 0:02:28]}  a4 {[%clk 0:01:48]} 19. Qe3 {[%clk 0:02:14]}  Nf6 {[%clk 0:01:44]} 20. d5 {[%clk 0:02:11]}  c5 {[%clk 0:01:23]} 21. Qxc5 {[%clk 0:02:11]}  Ra6 {[%clk 0:01:21]} 22. Qxd6 {[%clk 0:01:59]}  Rxd6 {[%clk 0:01:22]} 23. Rc4 {[%clk 0:01:56]}  Ra8 {[%clk 0:01:12]} 24. Rb4 {[%clk 0:01:53]}  b6 {[%clk 0:00:52]} 25. Ne5 {[%clk 0:01:27]}  a3 {[%clk 0:00:25]} 26. b3 {[%clk 0:01:20]}  Rxd5 {[%clk 0:00:24]} 27. Rxd5 {[%clk 0:01:01]}  Nxd5 {[%clk 0:00:24]} 28. Rc4 {[%clk 0:00:47]}  b5 {[%clk 0:00:24]} 29. Rc2 {[%clk 0:00:35]}  Nb4 {[%clk 0:00:20]} 30. Rd2 {[%clk 0:00:35]}  f6 {[%clk 0:00:19]} 31. Nd7 {[%clk 0:00:24]}  Rc8 {[%clk 0:00:16]} 32. Kf1 {[%clk 0:00:20]}  Rc1+ {[%clk 0:00:14]} 33. Ke2 {[%clk 0:00:20]}  Ra1 {[%clk 0:00:15]} 34. Nc5 {[%clk 0:00:09]}  Nxa2 {[%clk 0:00:08]} 35. Rd7 {[%clk 0:00:04]}  Nc1+ {[%clk 0:00:03]} 36. Kf3 {[%clk 0:00:04]}  a2 {[%clk 0:00:02]} 37. Ra7 {[%clk 0:00:03]}  Nd3 {[%clk 0:00:01]} 38. Ne6 {[%clk 0:00:04]}  g6 {[%clk 0:00:01]} 39. Rg7+ {[%clk 0:00:03]}  Kh8 {[%clk 0:00:01]} 40. Rf7 {[%clk 0:00:04]}  Ne5+ {[%clk 0:00:02]} 41. Ke4 {[%clk 0:00:03]}  Nxf7 {[%clk 0:00:03]} 42. Nd4 {[%clk 0:00:03]}  Re1+ {[%clk 0:00:03]} 43. Kd5 {[%clk 0:00:02]}  a1=Q {[%clk 0:00:04]} 44. Nxb5 {[%clk 0:00:03]}  Re5+ {[%clk 0:00:04]} 45. Kc4 {[%clk 0:00:04]}  Qa6 {[%clk 0:00:04]} 46. b4 {[%clk 0:00:04]}  Qxb5+ {[%clk 0:00:05]} 47. Kd4 {[%clk 0:00:04]}  Qxb4+ {[%clk 0:00:05]} 0-1


[Site "https://www.chess.com"]

[Event "Titled Tuesday Blitz September 13 Early 2022"]
[White "Beerdsen, Thomas"]
[Black "Suleymanli, Suleyman"]
[WhiteFideId "1030108"]
[BlackFideId "13416375"]
[WhiteElo "2567"]
[BlackElo "1652"]
[Result "1-0"]
[Round "02"]
[TimeControl "180+1"]
[Date "2022.09.13"]
[WhiteClock "0:01:21"]
[BlackClock "0:00:54"]

1. e4 {[%clk 0:03:00]}  e6 {[%clk 0:02:59]} 2. d4 {[%clk 0:02:57]}  d5 {[%clk 0:02:59]} 3. Nc3 {[%clk 0:02:58]}  Nf6 {[%clk 0:02:57]} 4. Bg5 {[%clk 0:02:58]}  Be7 {[%clk 0:02:57]} 5. e5 {[%clk 0:02:58]}  Nfd7 {[%clk 0:02:56]} 6. h4 {[%clk 0:02:59]}  h6 {[%clk 0:02:56]} 7. Bxe7 {[%clk 0:02:59]}  Qxe7 {[%clk 0:02:57]} 8. Qg4 {[%clk 0:03:00]}  g6 {[%clk 0:02:54]} 9. h5 {[%clk 0:02:59]}  g5 {[%clk 0:02:54]} 10. f4 {[%clk 0:03:00]}  gxf4 {[%clk 0:02:53]} 11. Qxf4 {[%clk 0:03:01]}  a6 {[%clk 0:02:52]} 12. Nf3 {[%clk 0:03:01]}  c5 {[%clk 0:02:50]} 13. O-O-O {[%clk 0:03:01]}  Nc6 {[%clk 0:02:50]} 14. dxc5 {[%clk 0:03:02]}  Nxc5 {[%clk 0:02:48]} 15. Be2 {[%clk 0:02:58]}  b5 {[%clk 0:02:47]} 16. Nd4 {[%clk 0:02:53]}  Bb7 {[%clk 0:02:46]} 17. Rhf1 {[%clk 0:02:50]}  Rh7 {[%clk 0:02:39]} 18. Kb1 {[%clk 0:02:47]}  O-O-O {[%clk 0:02:38]} 19. Nxc6 {[%clk 0:02:45]}  Bxc6 {[%clk 0:02:39]} 20. Qb4 {[%clk 0:02:44]}  Re8 {[%clk 0:02:30]} 21. Rf6 {[%clk 0:02:35]}  Nd7 {[%clk 0:02:26]} 22. Qa5 {[%clk 0:01:50]}  Kb7 {[%clk 0:02:23]} 23. a4 {[%clk 0:01:41]}  Nxf6 {[%clk 0:02:08]} 24. axb5 {[%clk 0:01:40]}  axb5 {[%clk 0:02:01]} 25. Bxb5 {[%clk 0:01:39]}  Bxb5 {[%clk 0:01:29]} 26. Qxb5+ {[%clk 0:01:40]}  Kc7 {[%clk 0:01:28]} 27. exf6 {[%clk 0:01:39]}  Qd7 {[%clk 0:01:25]} 28. Qa5+ {[%clk 0:01:36]}  Kb7 {[%clk 0:01:23]} 29. Rd4 {[%clk 0:01:29]}  Rb8 {[%clk 0:01:14]} 30. Rb4+ {[%clk 0:01:24]}  Kc8 {[%clk 0:01:05]} 31. Qc5+ {[%clk 0:01:24]}  Qc7 {[%clk 0:00:55]} 32. Qf8+ {[%clk 0:01:24]}  Kd7 {[%clk 0:00:55]} 33. Rxb8 {[%clk 0:01:22]}  d4 {[%clk 0:00:55]} 34. Qe8+ {[%clk 0:01:20]}  Kd6 {[%clk 0:00:54]} 35. Nb5+ {[%clk 0:01:21]} 1-0


[Site "https://www.chess.com"]

[Event "Titled Tuesday Blitz September 13 Early 2022"]
[White "Bodnaruk, Anastasia"]
[Black "Tang, Andrew"]
[WhiteFideId "4181751"]
[BlackFideId "2059630"]
[WhiteElo "2332"]
[BlackElo "2584"]
[Result "0-1"]
[Round "02"]
[TimeControl "180+1"]
[Date "2022.09.13"]
[WhiteClock "0:00:16"]
[BlackClock "0:00:17"]

1. e4 {[%clk 0:02:37]}  e5 {[%clk 0:02:59]} 2. Nf3 {[%clk 0:02:37]}  Nc6 {[%clk 0:02:59]} 3. Bc4 {[%clk 0:02:37]}  Nf6 {[%clk 0:02:58]} 4. d3 {[%clk 0:02:37]}  h6 {[%clk 0:02:58]} 5. c3 {[%clk 0:02:36]}  d6 {[%clk 0:02:57]} 6. O-O {[%clk 0:02:34]}  g5 {[%clk 0:02:57]} 7. Re1 {[%clk 0:02:31]}  Bg7 {[%clk 0:02:56]} 8. Nbd2 {[%clk 0:02:24]}  g4 {[%clk 0:02:54]} 9. Nh4 {[%clk 0:02:22]}  Nxe4 {[%clk 0:02:54]} 10. Nxe4 {[%clk 0:02:07]}  Qxh4 {[%clk 0:02:53]} 11. d4 {[%clk 0:02:07]}  O-O {[%clk 0:02:50]} 12. Be3 {[%clk 0:01:53]}  Kh8 {[%clk 0:02:44]} 13. f4 {[%clk 0:01:38]}  gxf3 {[%clk 0:02:27]} 14. Qxf3 {[%clk 0:01:36]}  exd4 {[%clk 0:01:56]} 15. Bf2 {[%clk 0:01:32]}  Qg4 {[%clk 0:01:53]} 16. Qd3 {[%clk 0:01:11]}  dxc3 {[%clk 0:01:12]} 17. bxc3 {[%clk 0:01:03]}  Ne5 {[%clk 0:01:10]} 18. Qe2 {[%clk 0:01:04]}  Qg6 {[%clk 0:01:07]} 19. Bb3 {[%clk 0:00:53]}  Bg4 {[%clk 0:01:01]} 20. Qe3 {[%clk 0:00:53]}  f5 {[%clk 0:00:59]} 21. Nd2 {[%clk 0:00:50]}  f4 {[%clk 0:00:58]} 22. Qe4 {[%clk 0:00:49]}  Bf5 {[%clk 0:00:54]} 23. Qa4 {[%clk 0:00:38]}  f3 {[%clk 0:00:42]} 24. g3 {[%clk 0:00:36]}  Nd3 {[%clk 0:00:42]} 25. Re7 {[%clk 0:00:31]}  Qg5 {[%clk 0:00:30]} 26. Rxg7 {[%clk 0:00:27]}  Qxd2 {[%clk 0:00:17]} 27. Qd4 {[%clk 0:00:16]}  Qxf2+ {[%clk 0:00:16]} 28. Qxf2 {[%clk 0:00:16]}  Nxf2 {[%clk 0:00:17]} 29. Rxc7 {[%clk 0:00:16]}  Nh3+ {[%clk 0:00:17]} 0-1


[Site "https://www.chess.com"]

[Event "Titled Tuesday Blitz September 13 Early 2022"]
[White "Bortnyk, Olexandr"]
[Black "Guz, Ari"]
[WhiteFideId "14120828"]
[BlackFideId "2825759"]
[WhiteElo "2723"]
[BlackElo "1913"]
[Result "1-0"]
[Round "02"]
[TimeControl "180+1"]
[Date "2022.09.13"]
[WhiteClock "0:01:31"]
[BlackClock "0:00:56"]

1. d4 {[%clk 0:03:00]}  Nf6 {[%clk 0:02:59]} 2. Nc3 {[%clk 0:03:00]}  d5 {[%clk 0:02:59]} 3. Bf4 {[%clk 0:02:59]}  c5 {[%clk 0:03:00]} 4. e4 {[%clk 0:02:59]}  Nxe4 {[%clk 0:02:54]} 5. Nxe4 {[%clk 0:02:59]}  dxe4 {[%clk 0:02:55]} 6. d5 {[%clk 0:03:00]}  Qb6 {[%clk 0:02:37]} 7. Ne2 {[%clk 0:02:53]}  e6 {[%clk 0:02:33]} 8. Nc3 {[%clk 0:02:51]}  Qxb2 {[%clk 0:02:11]} 9. Nb5 {[%clk 0:02:40]}  Na6 {[%clk 0:02:04]} 10. c3 {[%clk 0:02:31]}  Bd7 {[%clk 0:01:41]} 11. a4 {[%clk 0:02:10]}  exd5 {[%clk 0:01:21]} 12. Rb1 {[%clk 0:01:43]}  Qa2 {[%clk 0:01:20]} 13. Ra1 {[%clk 0:01:44]}  Qb2 {[%clk 0:01:20]} 14. Be2 {[%clk 0:01:45]}  d4 {[%clk 0:01:09]} 15. Bc4 {[%clk 0:01:33]}  d3 {[%clk 0:01:02]} 16. Ra2 {[%clk 0:01:32]}  Bxb5 {[%clk 0:00:56]} 17. Bxb5+ {[%clk 0:01:31]} 1-0


[Site "https://www.chess.com"]

[Event "Titled Tuesday Blitz September 13 Early 2022"]
[White "Demchenko, Anton"]
[Black "Perez Gormaz, Matias"]
[WhiteFideId "4160258"]
[BlackFideId "3406342"]
[WhiteElo "2539"]
[BlackElo "2341"]
[Result "1-0"]
[Round "02"]
[TimeControl "180+1"]
[Date "2022.09.13"]
[WhiteClock "0:00:47"]
[BlackClock "0:00:09"]

1. e4 {[%clk 0:03:00]}  e5 {[%clk 0:03:00]} 2. Nf3 {[%clk 0:03:00]}  Nc6 {[%clk 0:03:01]} 3. Bc4 {[%clk 0:03:00]}  Bc5 {[%clk 0:03:00]} 4. d3 {[%clk 0:03:01]}  d6 {[%clk 0:02:59]} 5. a4 {[%clk 0:03:00]}  a5 {[%clk 0:02:57]} 6. Be3 {[%clk 0:02:59]}  Bxe3 {[%clk 0:02:54]} 7. fxe3 {[%clk 0:02:59]}  Nf6 {[%clk 0:02:53]} 8. Nc3 {[%clk 0:02:57]}  O-O {[%clk 0:02:51]} 9. Qe2 {[%clk 0:02:57]}  Be6 {[%clk 0:02:49]} 10. O-O-O {[%clk 0:02:58]}  d5 {[%clk 0:02:39]} 11. exd5 {[%clk 0:02:58]}  Nxd5 {[%clk 0:02:40]} 12. Ne4 {[%clk 0:02:58]}  h6 {[%clk 0:01:49]} 13. g4 {[%clk 0:02:54]}  Qe7 {[%clk 0:01:40]} 14. g5 {[%clk 0:02:52]}  h5 {[%clk 0:01:40]} 15. Rhg1 {[%clk 0:02:50]}  Nb6 {[%clk 0:01:34]} 16. Nf6+ {[%clk 0:02:49]}  Kh8 {[%clk 0:01:29]} 17. Nxe5 {[%clk 0:02:48]}  g6 {[%clk 0:01:25]} 18. Nxc6 {[%clk 0:02:17]}  bxc6 {[%clk 0:01:23]} 19. Bxe6 {[%clk 0:02:13]}  Qxe6 {[%clk 0:01:22]} 20. b3 {[%clk 0:02:05]}  Nd5 {[%clk 0:01:22]} 21. Ne4 {[%clk 0:02:05]}  Qe5 {[%clk 0:01:10]} 22. Qf3 {[%clk 0:01:42]}  Rae8 {[%clk 0:00:50]} 23. Qg3 {[%clk 0:01:21]}  Qa1+ {[%clk 0:00:41]} 24. Kd2 {[%clk 0:01:21]}  Qa3 {[%clk 0:00:42]} 25. Ke1 {[%clk 0:01:05]}  Qb2 {[%clk 0:00:23]} 26. Qf2 {[%clk 0:00:59]}  Re5 {[%clk 0:00:14]} 27. c4 {[%clk 0:00:54]}  Qxb3 {[%clk 0:00:09]} 28. cxd5 {[%clk 0:00:53]}  Rf5 {[%clk 0:00:09]} 29. Qd2 {[%clk 0:00:48]}  cxd5 {[%clk 0:00:09]} 30. Qc3+ {[%clk 0:00:47]} 1-0


[Site "https://www.chess.com"]

[Event "Titled Tuesday Blitz September 13 Early 2022"]
[White "Dilanyan, Grigor"]
[Black "Oparin, Grigoriy"]
[WhiteFideId "13303570"]
[BlackFideId "24125890"]
[WhiteElo "2264"]
[BlackElo "2639"]
[Result "0-1"]
[Round "02"]
[TimeControl "180+1"]
[Date "2022.09.13"]
[WhiteClock "0:00:56"]
[BlackClock "0:01:25"]

1. d4 {[%clk 0:02:59]}  Nf6 {[%clk 0:02:58]} 2. Nf3 {[%clk 0:02:58]}  c5 {[%clk 0:02:59]} 3. d5 {[%clk 0:02:58]}  e6 {[%clk 0:02:59]} 4. Nc3 {[%clk 0:02:58]}  d6 {[%clk 0:02:53]} 5. e4 {[%clk 0:02:56]}  Be7 {[%clk 0:02:54]} 6. Bb5+ {[%clk 0:02:55]}  Bd7 {[%clk 0:02:51]} 7. dxe6 {[%clk 0:02:52]}  fxe6 {[%clk 0:02:52]} 8. a4 {[%clk 0:02:50]}  a6 {[%clk 0:02:50]} 9. Bc4 {[%clk 0:02:45]}  Nc6 {[%clk 0:02:50]} 10. O-O {[%clk 0:02:45]}  Ng4 {[%clk 0:02:27]} 11. Bf4 {[%clk 0:02:39]}  e5 {[%clk 0:02:01]} 12. Bc1 {[%clk 0:02:24]}  Nd4 {[%clk 0:02:01]} 13. h3 {[%clk 0:02:24]}  Nf6 {[%clk 0:02:00]} 14. Nxd4 {[%clk 0:02:16]}  cxd4 {[%clk 0:01:58]} 15. Nd5 {[%clk 0:02:16]}  Rc8 {[%clk 0:01:57]} 16. Nxf6+ {[%clk 0:02:15]}  Bxf6 {[%clk 0:01:57]} 17. Bd5 {[%clk 0:02:13]}  Bc6 {[%clk 0:01:54]} 18. Be6 {[%clk 0:01:48]}  Bd7 {[%clk 0:01:54]} 19. Bd5 {[%clk 0:01:48]}  Bc6 {[%clk 0:01:52]} 20. Be6 {[%clk 0:01:45]}  Rc7 {[%clk 0:01:53]} 21. Qh5+ {[%clk 0:01:35]}  g6 {[%clk 0:01:53]} 22. Qf3 {[%clk 0:01:32]}  Qe7 {[%clk 0:01:46]} 23. Bb3 {[%clk 0:01:32]}  Rf8 {[%clk 0:01:46]} 24. Bh6 {[%clk 0:01:32]}  Bg7 {[%clk 0:01:46]} 25. Qxf8+ {[%clk 0:01:11]}  Qxf8 {[%clk 0:01:39]} 26. Bd2 {[%clk 0:01:11]}  Bxe4 {[%clk 0:01:38]} 27. Rae1 {[%clk 0:01:11]}  Bxc2 {[%clk 0:01:37]} 28. Bd5 {[%clk 0:01:11]}  Kd7 {[%clk 0:01:32]} 29. f4 {[%clk 0:01:12]}  e4 {[%clk 0:01:32]} 30. f5 {[%clk 0:01:01]}  gxf5 {[%clk 0:01:31]} 31. g4 {[%clk 0:01:02]}  e3 {[%clk 0:01:32]} 32. Bb4 {[%clk 0:01:01]}  Be5 {[%clk 0:01:29]} 33. Rxf5 {[%clk 0:01:01]}  Bxf5 {[%clk 0:01:28]} 34. Rf1 {[%clk 0:01:02]}  e2 {[%clk 0:01:22]} 35. Rxf5 {[%clk 0:01:02]}  Rc1+ {[%clk 0:01:22]} 36. Kf2 {[%clk 0:00:57]}  Rf1+ {[%clk 0:01:22]} 37. Kxe2 {[%clk 0:00:58]}  Rxf5 {[%clk 0:01:23]} 38. gxf5 {[%clk 0:00:55]}  Qxf5 {[%clk 0:01:24]} 39. Bxb7 {[%clk 0:00:56]}  Qc2+ {[%clk 0:01:24]} 40. Kf1 {[%clk 0:00:56]}  d3 {[%clk 0:01:25]} 41. Bxa6 {[%clk 0:00:56]}  Qe2+ {[%clk 0:01:24]} 42. Kg1 {[%clk 0:00:55]}  Bd4+ {[%clk 0:01:24]} 43. Kh1 {[%clk 0:00:56]}  Qf1+ {[%clk 0:01:24]} 44. Kh2 {[%clk 0:00:56]}  Qg1# {[%clk 0:01:25]} 0-1


[Site "https://www.chess.com"]

[Event "Titled Tuesday Blitz September 13 Early 2022"]
[White "Donchenko, Alexander"]
[Black "Gevorgyan, David Sh."]
[WhiteFideId "24603295"]
[BlackFideId "13303244"]
[WhiteElo "2572"]
[BlackElo "2235"]
[Result "1-0"]
[Round "02"]
[TimeControl "180+1"]
[Date "2022.09.13"]
[WhiteClock "0:00:39"]
[BlackClock "0:00:02"]

1. Nf3 {[%clk 0:02:10]}  Nf6 {[%clk 0:02:59]} 2. g3 {[%clk 0:02:10]}  g6 {[%clk 0:02:59]} 3. Bg2 {[%clk 0:02:11]}  Bg7 {[%clk 0:03:00]} 4. O-O {[%clk 0:02:11]}  O-O {[%clk 0:03:01]} 5. d4 {[%clk 0:02:12]}  d5 {[%clk 0:03:01]} 6. c4 {[%clk 0:02:11]}  c6 {[%clk 0:02:58]} 7. b3 {[%clk 0:02:11]}  Ne4 {[%clk 0:02:58]} 8. Bb2 {[%clk 0:02:09]}  Nd7 {[%clk 0:02:58]} 9. e3 {[%clk 0:02:08]}  Ndf6 {[%clk 0:02:57]} 10. Qe2 {[%clk 0:02:07]}  Bf5 {[%clk 0:02:55]} 11. cxd5 {[%clk 0:02:05]}  cxd5 {[%clk 0:02:50]} 12. Ne5 {[%clk 0:02:04]}  a6 {[%clk 0:02:45]} 13. Rc1 {[%clk 0:01:59]}  Rc8 {[%clk 0:02:43]} 14. Nc3 {[%clk 0:01:57]}  Nxc3 {[%clk 0:02:42]} 15. Bxc3 {[%clk 0:01:58]}  Be4 {[%clk 0:02:32]} 16. Bh3 {[%clk 0:01:56]}  Bf5 {[%clk 0:02:27]} 17. Bxf5 {[%clk 0:01:54]}  gxf5 {[%clk 0:02:28]} 18. Bb4 {[%clk 0:01:53]}  Re8 {[%clk 0:02:18]} 19. Qe1 {[%clk 0:01:36]}  Ng4 {[%clk 0:01:27]} 20. Rxc8 {[%clk 0:01:26]}  Qxc8 {[%clk 0:01:26]} 21. Rc1 {[%clk 0:01:27]}  Qe6 {[%clk 0:00:55]} 22. Nd3 {[%clk 0:01:25]}  b6 {[%clk 0:00:40]} 23. Nf4 {[%clk 0:01:23]}  Qd7 {[%clk 0:00:39]} 24. Qc3 {[%clk 0:01:20]}  a5 {[%clk 0:00:39]} 25. Ba3 {[%clk 0:01:20]}  e6 {[%clk 0:00:38]} 26. Nh5 {[%clk 0:01:14]}  Nf6 {[%clk 0:00:27]} 27. Nxf6+ {[%clk 0:00:58]}  Bxf6 {[%clk 0:00:26]} 28. Qc6 {[%clk 0:00:59]}  Qxc6 {[%clk 0:00:24]} 29. Rxc6 {[%clk 0:01:00]}  Rb8 {[%clk 0:00:25]} 30. Bd6 {[%clk 0:01:00]}  Rb7 {[%clk 0:00:20]} 31. Bc7 {[%clk 0:01:00]}  b5 {[%clk 0:00:07]} 32. Bxa5 {[%clk 0:00:53]}  Ra7 {[%clk 0:00:06]} 33. b4 {[%clk 0:00:54]}  Rb7 {[%clk 0:00:07]} 34. Bb6 {[%clk 0:00:49]}  Be7 {[%clk 0:00:05]} 35. Bc5 {[%clk 0:00:49]}  Bxc5 {[%clk 0:00:04]} 36. dxc5 {[%clk 0:00:41]}  Ra7 {[%clk 0:00:04]} 37. Rb6 {[%clk 0:00:40]}  Rxa2 {[%clk 0:00:05]} 38. Rxb5 {[%clk 0:00:40]}  Kg7 {[%clk 0:00:05]} 39. c6 {[%clk 0:00:39]}  Rc2 {[%clk 0:00:02]} 40. Rc5 {[%clk 0:00:39]}  Ra2 {[%clk 0:00:01]} 41. c7 {[%clk 0:00:39]}  Ra1+ {[%clk 0:00:02]} 42. Kg2 {[%clk 0:00:39]} 1-0


[Site "https://www.chess.com"]

[Event "Titled Tuesday Blitz September 13 Early 2022"]
[White "Goryachkina, Aleksandra"]
[Black "Andreikin, Dmitry"]
[WhiteFideId "4147103"]
[BlackFideId "4158814"]
[WhiteElo "2426"]
[BlackElo "2736"]
[Result "1/2-1/2"]
[Round "02"]
[TimeControl "180+1"]
[Date "2022.09.13"]
[WhiteClock "0:00:36"]
[BlackClock "0:01:41"]

1. e4 {[%clk 0:02:59]}  c5 {[%clk 0:02:58]} 2. Nf3 {[%clk 0:02:59]}  e6 {[%clk 0:02:59]} 3. c3 {[%clk 0:02:59]}  d5 {[%clk 0:02:57]} 4. exd5 {[%clk 0:02:59]}  exd5 {[%clk 0:02:56]} 5. Bb5+ {[%clk 0:02:57]}  Nc6 {[%clk 0:02:55]} 6. d4 {[%clk 0:02:57]}  Bd6 {[%clk 0:02:55]} 7. O-O {[%clk 0:02:55]}  Ne7 {[%clk 0:02:55]} 8. dxc5 {[%clk 0:02:48]}  Bxc5 {[%clk 0:02:55]} 9. Nbd2 {[%clk 0:02:48]}  O-O {[%clk 0:02:55]} 10. Nb3 {[%clk 0:02:47]}  Bb6 {[%clk 0:02:55]} 11. Re1 {[%clk 0:02:29]}  Bg4 {[%clk 0:02:51]} 12. Be3 {[%clk 0:02:13]}  Bxe3 {[%clk 0:02:47]} 13. Rxe3 {[%clk 0:02:13]}  Nf5 {[%clk 0:02:48]} 14. Re1 {[%clk 0:02:08]}  Qb6 {[%clk 0:02:31]} 15. Bd3 {[%clk 0:01:57]}  Nh4 {[%clk 0:02:23]} 16. Be2 {[%clk 0:01:40]}  Bxf3 {[%clk 0:02:19]} 17. Bxf3 {[%clk 0:01:40]}  Nxf3+ {[%clk 0:02:15]} 18. Qxf3 {[%clk 0:01:40]}  Rad8 {[%clk 0:02:09]} 19. Rad1 {[%clk 0:01:32]}  d4 {[%clk 0:02:08]} 20. cxd4 {[%clk 0:01:28]}  Nxd4 {[%clk 0:01:58]} 21. Nxd4 {[%clk 0:01:28]}  Rxd4 {[%clk 0:01:59]} 22. Rxd4 {[%clk 0:01:27]}  Qxd4 {[%clk 0:01:59]} 23. Qxb7 {[%clk 0:01:26]}  g6 {[%clk 0:01:59]} 24. h3 {[%clk 0:01:26]}  Qd2 {[%clk 0:01:58]} 25. Rf1 {[%clk 0:01:21]}  a5 {[%clk 0:01:55]} 26. Qb5 {[%clk 0:01:01]}  h5 {[%clk 0:01:50]} 27. a3 {[%clk 0:00:58]}  Ra8 {[%clk 0:01:49]} 28. b4 {[%clk 0:00:49]}  axb4 {[%clk 0:01:45]} 29. axb4 {[%clk 0:00:44]}  Ra2 {[%clk 0:01:42]} 30. Qe8+ {[%clk 0:00:40]}  Kg7 {[%clk 0:01:43]} 31. Qe5+ {[%clk 0:00:40]}  Kg8 {[%clk 0:01:41]} 32. Qe8+ {[%clk 0:00:39]}  Kg7 {[%clk 0:01:41]} 33. Qe5+ {[%clk 0:00:36]}  Kg8 {[%clk 0:01:41]} 34. Qe8+ {[%clk 0:00:36]} 1/2-1/2


[Site "https://www.chess.com"]

[Event "Titled Tuesday Blitz September 13 Early 2022"]
[White "Grover, Sahaj"]
[Black "Kamsky, Gata"]
[WhiteFideId "5021103"]
[BlackFideId "2000024"]
[WhiteElo "2432"]
[BlackElo "2666"]
[Result "0-1"]
[Round "02"]
[TimeControl "180+1"]
[Date "2022.09.13"]
[WhiteClock "0:00:17"]
[BlackClock "0:00:44"]

1. d4 {[%clk 0:03:00]}  f5 {[%clk 0:02:55]} 2. Bf4 {[%clk 0:03:00]}  Nf6 {[%clk 0:02:52]} 3. e3 {[%clk 0:03:00]}  e6 {[%clk 0:02:50]} 4. Nf3 {[%clk 0:02:59]}  b6 {[%clk 0:02:46]} 5. c4 {[%clk 0:02:59]}  Bb7 {[%clk 0:02:43]} 6. Nc3 {[%clk 0:03:00]}  Bb4 {[%clk 0:02:42]} 7. Bd3 {[%clk 0:02:59]}  Bxc3+ {[%clk 0:02:33]} 8. bxc3 {[%clk 0:03:00]}  Nc6 {[%clk 0:02:20]} 9. h3 {[%clk 0:02:54]}  Na5 {[%clk 0:02:15]} 10. Nd2 {[%clk 0:02:35]}  d6 {[%clk 0:02:06]} 11. Qe2 {[%clk 0:02:20]}  Qe7 {[%clk 0:02:04]} 12. e4 {[%clk 0:02:10]}  e5 {[%clk 0:01:50]} 13. Bg5 {[%clk 0:01:50]}  f4 {[%clk 0:01:47]} 14. c5 {[%clk 0:01:36]}  O-O {[%clk 0:01:34]} 15. Nc4 {[%clk 0:01:15]}  Nxc4 {[%clk 0:01:28]} 16. Bxc4+ {[%clk 0:01:16]}  Kh8 {[%clk 0:01:28]} 17. cxd6 {[%clk 0:00:58]}  cxd6 {[%clk 0:01:25]} 18. g3 {[%clk 0:00:46]}  fxg3 {[%clk 0:01:21]} 19. fxg3 {[%clk 0:00:47]}  Qc7 {[%clk 0:01:16]} 20. O-O {[%clk 0:00:30]}  Nxe4 {[%clk 0:01:14]} 21. Rxf8+ {[%clk 0:00:19]}  Rxf8 {[%clk 0:01:13]} 22. Be3 {[%clk 0:00:19]}  Nxg3 {[%clk 0:01:09]} 23. Qg4 {[%clk 0:00:19]}  Qxc4 {[%clk 0:01:07]} 24. Qxg3 {[%clk 0:00:20]}  Rf3 {[%clk 0:00:46]} 25. Qg5 {[%clk 0:00:18]}  h6 {[%clk 0:00:45]} 26. Qd8+ {[%clk 0:00:18]}  Kh7 {[%clk 0:00:45]} 27. Bf2 {[%clk 0:00:17]}  Rxh3 {[%clk 0:00:44]} 0-1


[Site "https://www.chess.com"]

[Event "Titled Tuesday Blitz September 13 Early 2022"]
[White "Hakobyan, Aram"]
[Black "Paszewski, Mateusz"]
[WhiteFideId "13306677"]
[BlackFideId "1141058"]
[WhiteElo "2563"]
[BlackElo "2183"]
[Result "1-0"]
[Round "02"]
[TimeControl "180+1"]
[Date "2022.09.13"]
[WhiteClock "0:00:19"]
[BlackClock "0:00:03"]

1. e4 {[%clk 0:02:57]}  c6 {[%clk 0:03:00]} 2. d4 {[%clk 0:02:54]}  d5 {[%clk 0:03:01]} 3. exd5 {[%clk 0:02:55]}  cxd5 {[%clk 0:03:01]} 4. Nf3 {[%clk 0:02:55]}  Nf6 {[%clk 0:02:51]} 5. c3 {[%clk 0:02:55]}  Nc6 {[%clk 0:02:48]} 6. Ne5 {[%clk 0:02:55]}  a6 {[%clk 0:02:29]} 7. Nd2 {[%clk 0:02:47]}  Bf5 {[%clk 0:02:23]} 8. Qa4 {[%clk 0:02:43]}  Qc7 {[%clk 0:02:17]} 9. Bb5 {[%clk 0:02:33]}  Bd7 {[%clk 0:02:14]} 10. Nxd7 {[%clk 0:02:32]}  Nxd7 {[%clk 0:02:11]} 11. O-O {[%clk 0:02:21]}  e6 {[%clk 0:02:06]} 12. Bd3 {[%clk 0:02:19]}  Bd6 {[%clk 0:02:04]} 13. Nf3 {[%clk 0:02:19]}  O-O {[%clk 0:02:02]} 14. Re1 {[%clk 0:02:19]}  b5 {[%clk 0:01:48]} 15. Qc2 {[%clk 0:02:17]}  Nf6 {[%clk 0:01:48]} 16. Bg5 {[%clk 0:02:16]}  h6 {[%clk 0:01:48]} 17. Bxf6 {[%clk 0:02:11]}  gxf6 {[%clk 0:01:49]} 18. g3 {[%clk 0:02:11]}  Rac8 {[%clk 0:01:46]} 19. Qd2 {[%clk 0:02:11]}  Kg7 {[%clk 0:01:45]} 20. Nh4 {[%clk 0:02:11]}  Qb6 {[%clk 0:01:25]} 21. Qd1 {[%clk 0:02:01]}  Ne7 {[%clk 0:00:59]} 22. Qg4+ {[%clk 0:01:51]}  Kh8 {[%clk 0:00:57]} 23. Qh5 {[%clk 0:01:28]}  Kg7 {[%clk 0:00:53]} 24. Re3 {[%clk 0:01:23]}  f5 {[%clk 0:00:49]} 25. Rae1 {[%clk 0:01:21]}  Bb8 {[%clk 0:00:32]} 26. g4 {[%clk 0:01:18]}  f4 {[%clk 0:00:30]} 27. Rh3 {[%clk 0:01:17]}  Rh8 {[%clk 0:00:28]} 28. g5 {[%clk 0:01:06]}  Rcg8 {[%clk 0:00:26]} 29. g6 {[%clk 0:00:54]}  f5 {[%clk 0:00:19]} 30. Kh1 {[%clk 0:00:51]}  Kf6 {[%clk 0:00:19]} 31. Rg1 {[%clk 0:00:39]}  Qd6 {[%clk 0:00:16]} 32. a3 {[%clk 0:00:22]}  Rg7 {[%clk 0:00:16]} 33. Nf3 {[%clk 0:00:21]}  Rxg6 {[%clk 0:00:13]} 34. Qh4+ {[%clk 0:00:21]}  Kf7 {[%clk 0:00:14]} 35. Ne5+ {[%clk 0:00:21]}  Kg7 {[%clk 0:00:09]} 36. Nxg6 {[%clk 0:00:20]}  Nxg6 {[%clk 0:00:10]} 37. Qh5 {[%clk 0:00:18]}  e5 {[%clk 0:00:03]} 38. Bxf5 {[%clk 0:00:18]}  Rf8 {[%clk 0:00:03]} 39. Rxg6+ {[%clk 0:00:19]} 1-0


[Site "https://www.chess.com"]